bitfinex-derivatives/quotes_SOLF0:USTF0_20251125
["timestamp","ask_amount","ask_price","bid_price","bid_amount"]
[1764071906879,28.39713229,136.35,136.27,3.07]
[1764071907572,28.39713229,136.35,136.29,3.07]
[1764071907979,0.05408436,136.33,136.31,0.04677544]
[1764071908378,6.65798436,136.33,136.31,0.04677544]
[1764071911881,6.65798436,136.33,136.31,3.11677544]
[1764071913083,6.65798436,136.33,136.31,0.04677544]
[1764071913385,6.6043,136.32,136.31,0.04677544]
[1764071913581,4.83121665,136.33,136.25,3.07]
[1764071913786,3.31713229,136.31,136.25,3.07]
[1764071914689,0.05015811,136.29,136.27,0.04754917]
[1764071916675,6.65635811,136.29,136.27,0.04754917]
[1764071919385,6.6063,136.28,136.27,0.04754917]
[1764071926098,6.6063,136.28,136.27,3.11754917]
[1764071929691,0.05015811,136.29,136.27,3.11754917]
[1764071930292,6.6063,136.28,136.27,3.11754917]
[1764071934805,6.6063,136.28,136.27,0.04754917]
[1764071935101,102.7809,136.26,136.2,2.93]
[1764071935306,3.31713229,136.25,136.2,2.93]
[1764071935601,106.08463229,136.28,136.2,2.93]
[1764071935910,0.04972954,136.25,136.23,0.04921588]
[1764071936103,6.6083,136.24,136.23,0.04921588]
[1764071941303,0.04972954,136.25,136.23,0.04921588]
[1764071944421,6.65752954,136.25,136.23,0.04921588]
[1764071944911,0.04972954,136.25,136.23,3.04921588]
[1764071946716,0.04972954,136.25,136.23,0.04921588]
[1764071947021,0.04972954,136.25,136.23,3.04921588]
[1764071948818,6.65742954,136.25,136.23,3.04921588]
[1764071952211,6.65742954,136.25,136.23,0.04921588]
[1764071952720,6.65742954,136.25,136.23,3.04921588]
[1764071954317,0.04972954,136.25,136.23,3.04921588]
[1764071966337,6.65752954,136.25,136.23,3.04921588]
[1764071966539,6.65752954,136.25,136.23,0.04921588]
[1764071970841,6.65752954,136.25,136.23,3.15921588]
[1764071971836,6.65752954,136.25,136.23,0.04921588]
[1764071976850,0.04972954,136.25,136.23,3.15921588]
[1764071978457,6.65762954,136.25,136.23,0.04921588]
[1764071979560,6.6082,136.24,136.23,0.04921588]
[1764071988458,6.6082,136.24,136.17,28.84940638]
[1764071988459,102.7957,136.24,136.17,25.41790638]
[1764071989155,6.6099,136.21,136.18,3.18]
[1764071989557,6.66354274,136.21,136.18,3.22972592]
[1764071991456,6.66354274,136.21,136.18,65.22972592]
[1764071991657,6.66354274,136.21,136.18,3.22972592]
[1764071994761,6.66354274,136.21,136.19,3.18]
[1764071996361,6.66354274,136.21,136.18,3.22972592]
[1764071997651,0.05364274,136.21,136.18,3.22972592]
[1764071997860,0.05364274,136.21,136.19,3.19]
[1764071999163,0.05364274,136.21,136.2,3.19]
[1764072000358,2.12287919,136.27,136.21,3.19]
[1764072000553,25.08,136.29,136.21,3.19]
[1764072000759,25.08,136.29,136.25,3.19]
[1764072001168,106.05446473,136.32,136.25,3.19]
[1764072001464,0.05633112,136.3,136.27,3.24079282]
[1764072001766,102.7069,136.36,136.3,3.19]
[1764072001967,0.05157795,136.34,136.3,3.19]
[1764072002163,0.05157795,136.34,136.32,3.24629562]
[1764072002364,0.05157795,136.34,136.32,0.04878037]
[1764072003965,0.05157795,136.34,136.32,3.23878037]
[1764072006277,0.05157795,136.34,136.32,0.04878037]
[1764072006474,0.05157795,136.34,136.32,3.23878037]
[1764072008365,0.05157795,136.34,136.32,0.04878037]
[1764072008768,6.65507795,136.34,136.32,0.04878037]
[1764072010571,0.05157795,136.34,136.32,0.04878037]
[1764072012068,6.65497795,136.34,136.32,0.04878037]
[1764072012267,6.65497795,136.34,136.32,3.23878037]
[1764072014764,0.05157795,136.34,136.32,3.23878037]
[1764072021984,102.7053,136.36,136.32,0.04878037]
[1764072022185,102.7053,136.36,136.32,3.03878037]
[1764072022581,6.6036,136.34,136.32,3.03878037]
[1764072022880,6.6539575,136.34,136.32,0.04878037]
[1764072023782,6.6063,136.28,136.25,2.99]
[1764072023987,106.06016473,136.31,136.25,2.99]
[1764072024189,102.7501,136.3,136.25,2.99]
[1764072024985,0.05511678,136.29,136.26,3.04609308]
[1764072025286,6.6068,136.27,136.26,3.04609308]
[1764072027288,6.66131678,136.29,136.26,3.04609308]
[1764072027588,0.05511678,136.29,136.26,3.04609308]
[1764072028287,6.6063,136.28,136.26,3.04609308]
[1764072029588,6.6071,136.27,136.23,2.99]
[1764072030289,0.05511678,136.29,136.23,2.99]
[1764072030592,0.05511678,136.29,136.26,2.99]
[1764072031591,6.6064,136.28,136.26,2.99]
[1764072032588,0.05511678,136.29,136.26,2.99]
[1764072033985,0.05511678,136.29,136.27,2.99]
[1764072034493,6.6047,136.32,136.27,2.99]
[1764072034687,6.6038,136.34,136.28,2.99]
[1764072034882,102.7075,136.36,136.28,2.99]
[1764072035082,106.02396473,136.36,136.28,2.99]
[1764072035484,0.04745071,136.33,136.31,0.05069375]
[1764072035792,6.65145071,136.33,136.31,3.04069375]
[1764072036597,6.65145071,136.33,136.31,0.05069375]
[1764072036800,6.6059,136.29,136.25,2.99]
[1764072037888,0.04838474,136.28,136.26,3.03996291]
[1764072038088,6.65468474,136.28,136.26,0.04996291]
[1764072038288,102.7742,136.27,136.22,64.99]
[1764072038684,6.6083,136.24,136.22,2.99]
[1764072039296,6.66024205,136.24,136.22,3.03994695]
[1764072039886,6.66024205,136.24,136.22,0.04994695]
[1764072042796,6.66024205,136.24,136.22,3.03994695]
[1764072043410,6.66024205,136.24,136.22,0.04994695]
[1764072044907,6.66024205,136.24,136.23,2.99]
[1764072046111,6.66024205,136.24,136.22,0.04994695]
[1764072046413,6.66024205,136.24,136.22,3.03994695]
[1764072047307,6.66024205,136.24,136.22,0.04994695]
[1764072047808,6.66024205,136.24,136.22,3.10994695]
[1764072052508,0.05194205,136.24,136.22,3.10994695]
[1764072052912,6.66014205,136.24,136.22,3.10994695]
[1764072054009,0.05194205,136.24,136.22,3.10994695]
[1764072054213,0.05194205,136.24,136.16,124.85432814]
[1764072054214,102.8507,136.17,136.11,3.06]
[1764072054404,3.31646473,136.18,136.11,3.06]
[1764072054713,25.1,136.19,136.11,3.06]
[1764072055203,0.05289456,136.16,136.15,3.06]
[1764072060711,128.0076,136.23,136.15,3.06]
[1764072060712,2.12549339,136.22,136.16,2.93]
[1764072061304,2.12549339,136.2,136.14,64.93]
[1764072061705,0.05001971,136.18,136.17,2.93]
[1764072061905,0.05106141,136.19,136.17,2.93]
[1764072066307,6.6084,136.24,136.19,2.93]
[1764072067316,0.05085014,136.23,136.21,2.93]
[1764072067914,0.05085014,136.23,136.16,6.6118]
[1764072067915,102.8195,136.21,136.15,2.93]
[1764072068117,2.12549339,136.19,136.15,2.93]
[1764072068311,6.6117,136.17,136.15,2.93]
[1764072068815,6.66105428,136.17,136.15,2.98057539]
[1764072074517,0.04935428,136.17,136.15,2.98057539]
[1764072075612,6.61,136.21,136.16,2.93]
[1764072076011,104.93199339,136.23,136.16,2.93]
[1764072076620,0.05213269,136.21,136.18,2.98317627]
[1764072077119,6.6103,136.2,136.18,2.98317627]
[1764072077317,6.6103,136.2,136.18,0.05317627]
[1764072078015,6.6103,136.2,136.18,3.09317627]
[1764072079923,0.05213269,136.21,136.18,3.09317627]
[1764072080419,6.66193269,136.21,136.18,3.09317627]
[1764072082428,6.66193269,136.21,136.18,0.05317627]
[1764072082719,6.66193269,136.21,136.18,3.09317627]
[1764072085420,0.05213269,136.21,136.18,3.09317627]
[1764072086023,0.05213269,136.21,136.18,9.70407627]
[1764072086224,0.05213269,136.21,136.19,3.04]
[1764072086826,6.608,136.25,136.19,3.04]
[1764072087227,6.608,136.25,136.21,3.04]
[1764072087521,6.6082,136.24,136.21,3.04]
[1764072087929,6.65802727,136.24,136.21,3.09027381]
[1764072092529,6.6087,136.23,136.21,0.05027381]
[1764072093724,0.04982727,136.24,136.21,3.09027381]
[1764072094628,6.65802727,136.24,136.21,3.09027381]
[1764072095627,0.04982727,136.24,136.21,3.09027381]
[1764072098114,0.04982727,136.24,136.21,9.69987381]
[1764072098329,0.04982727,136.24,136.22,3.04]
[1764072098918,32.02749866,136.35,136.23,3.04]
[1764072099130,104.86059339,136.32,136.25,3.04]
[1764072100029,6.6062,136.29,136.27,0.05079454]
[1764072100232,0.04672352,136.3,136.27,3.09079454]
[1764072100429,0.04672352,136.3,136.28,3.04]
[1764072101925,0.04672352,136.3,136.29,3.04]
[1764072105732,127.8783,136.4,136.29,3.04]
[1764072105932,2.12549339,136.39,136.33,3.04]
[1764072106127,6.6022,136.37,136.33,3.04]
[1764072106632,6.6022,136.37,136.34,3.04]
[1764072106941,0.04486278,136.36,136.34,3.09577179]
[1764072107635,6.6012,136.39,136.35,3.19]
[1764072108223,6.6,136.41,136.35,3.19]
[1764072108428,2.12549339,136.44,136.37,3.19]
[1764072108627,2.12549339,136.44,136.4,3.19]
[1764072110135,6.5996,136.42,136.39,3.24081848]
[1764072113743,2.12549339,136.44,136.39,3.24081848]
[1764072113744,8.72419339,136.44,136.39,3.24081848]
[1764072114043,8.72419339,136.44,136.4,3.19]
[1764072114940,6.5987,136.44,136.4,3.19]
[1764072115136,6.5979,136.46,136.41,3.19]
[1764072115436,6.5979,136.46,136.43,3.19]
[1764072116231,6.597,136.48,136.43,3.19]
[1764072116439,104.73779339,136.49,136.43,3.19]
[1764072116833,2.12549339,136.49,136.43,3.19]
[1764072117542,8.72139339,136.5,136.43,3.19]
[1764072117742,2.12549339,136.5,136.46,3.15]
[1764072118339,2.12549339,136.5,136.45,0.04671047]
[1764072118743,2.12549339,136.5,136.45,3.19671047]
[1764072119943,6.5963,136.49,136.45,3.19671047]
[1764072121039,6.5966,136.48,136.45,3.19671047]
[1764072122149,6.5955,136.5,136.45,3.19671047]
[1764072122347,2.12549339,136.51,136.45,3.19671047]
[1764072122549,102.5863,136.52,136.45,3.19671047]
[1764072122744,102.572,136.54,136.45,3.19671047]
[1764072122943,102.572,136.54,136.48,0.04952188]
[1764072123350,105.86931897,136.55,136.48,3.19952188]
[1764072123654,3.30561897,136.51,136.48,0.04952188]
[1764072123850,102.5851,136.52,136.48,0.04952188]
[1764072124450,105.88511897,136.53,136.48,0.04952188]
[1764072124747,102.5694,136.54,136.48,3.19952188]
[1764072125659,102.5694,136.54,136.48,65.19952188]
[1764072126144,6.5951,136.51,136.49,3.15]
[1764072126453,105.86931897,136.55,136.49,3.15]
[1764072127349,102.543,136.58,136.49,3.15]
[1764072127551,102.543,136.58,136.52,3.20440781]
[1764072128852,6.5937,136.54,136.52,0.05440781]
[1764072132853,3.30561897,136.53,136.52,0.05440781]
[1764072133850,6.5937,136.54,136.52,0.05440781]
[1764072136250,3.30561897,136.53,136.52,0.05440781]
[1764072137946,102.6072,136.49,136.46,3.15]
[1764072138750,6.598,136.45,136.44,62.0]
[1764072140750,6.598,136.45,136.44,3.16]
[1764072144160,6.5985,136.44,136.43,0.04735213]
[1764072147559,102.6561,136.43,136.37,62.0]
[1764072148257,6.6009,136.39,136.37,62.0]
[1764072148650,6.65447609,136.39,136.37,62.05377391]
[1764072149658,6.65447609,136.39,136.38,3.16]
[1764072149860,0.05357609,136.39,136.38,3.16]
[1764072152450,6.5999,136.42,136.38,4.62]
[1764072152654,102.6404,136.45,136.39,3.16]
[1764072153552,0.04818385,136.43,136.41,3.20884971]
[1764072154258,6.5995,136.42,136.41,3.20884971]
[1764072155464,0.04818385,136.43,136.41,3.20884971]
[1764072155668,115.8026,136.49,136.41,28.34884971]
[1764072155856,115.8026,136.49,136.42,3.16]
[1764072156763,6.5979,136.46,136.42,3.16]
[1764072157160,6.5986,136.44,136.42,3.16]
[1764072159365,6.5978,136.46,136.42,3.16]
[1764072159561,105.89341897,136.52,136.44,3.16]
[1764072159768,105.89341897,136.52,136.47,3.16]
[1764072159968,6.5965,136.49,136.47,3.16]
[1764072161759,6.5971,136.47,136.46,3.21385092]
[1764072162063,6.5971,136.47,136.46,0.05385092]
[1764072162259,6.5971,136.47,136.46,3.21385092]
[1764072163368,6.5965,136.49,136.47,3.16]
[1764072165268,6.597,136.48,136.46,65.21385092]
[1764072165968,6.597,136.48,136.47,3.16]
[1764072169872,6.597,136.48,136.46,3.00385092]
[1764072171480,6.5971,136.47,136.46,3.00385092]
[1764072172870,6.5971,136.47,136.46,65.00385092]
[1764072178084,105.89341897,136.52,136.46,65.00385092]
[1764072178473,105.89341897,136.52,136.46,3.00385092]
[1764072178981,102.5921,136.51,136.46,3.00385092]
[1764072181090,6.597,136.48,136.46,3.00385092]
[1764072181383,6.597,136.48,136.47,62.0]
[1764072181688,6.5959,136.5,136.46,3.00385092]
[1764072182284,130.99601897,136.57,136.46,3.00385092]
[1764072182481,130.99601897,136.57,136.5,0.0552135]
[1764072182682,6.5947,136.52,136.5,2.9452135]
[1764072182886,6.5947,136.52,136.5,0.0552135]
[1764072186385,102.6112,136.49,136.41,2.89]
[1764072186688,2.11411639,136.48,136.41,2.89]
[1764072186890,2.11411639,136.48,136.42,2.89]
[1764072187282,0.05060332,136.46,136.44,0.04935515]
[1764072187682,0.05060332,136.46,136.44,2.93935515]
[1764072188081,6.64840332,136.46,136.44,2.93935515]
[1764072189382,8.76251971,136.46,136.44,0.04935515]
[1764072193594,6.5997,136.42,136.4,62.0]
[1764072194386,6.5997,136.42,136.4,64.89]
[1764072194581,6.65352255,136.42,136.4,2.94361059]
[1764072197079,6.65352255,136.42,136.4,0.05361059]
[1764072197595,8.76763894,136.42,136.4,0.05361059]
[1764072200396,6.6019,136.37,136.35,2.96]
[1764072201492,0.05393683,136.37,136.35,3.01242796]
[1764072202100,127.7472,136.44,136.37,2.96]
[1764072202300,102.6472,136.44,136.37,2.96]
[1764072202488,102.6472,136.44,136.38,62.0]
[1764072202692,102.6472,136.44,136.38,64.96]
[1764072202894,6.6005,136.4,136.39,2.96]
[1764072203299,6.6005,136.4,136.38,62.04662067]
[1764072203501,6.6005,136.4,136.38,0.04662067]
[1764072207095,6.6005,136.4,136.38,3.00662067]
[1764072207300,2.11411639,136.47,136.39,2.96]
[1764072207594,102.6294,136.46,136.41,2.96]
[1764072207800,104.75401639,136.45,136.39,2.96]
[1764072208098,2.11411639,136.41,136.37,2.96]
[1764072208289,0.05639078,136.4,136.38,3.01375712]
[1764072208485,0.05244678,136.4,136.38,3.01375712]
[1764072210499,0.00244678,136.4,136.38,9.61515712]
[1764072210796,8.71191639,136.46,136.4,2.96]
[1764072211195,6.5978,136.46,136.4,2.96]
[1764072211602,6.5978,136.46,136.43,2.96]
[1764072212099,2.11411639,136.47,136.43,2.96]
[1764072213097,8.71131639,136.47,136.43,2.96]
[1764072214805,6.5976,136.46,136.43,2.96]
[1764072215200,6.5976,136.46,136.42,3.01234712]
[1764072215600,6.5982,136.45,136.42,0.05234712]
[1764072217195,6.5986,136.44,136.42,0.05234712]
[1764072221001,6.5986,136.44,136.42,3.01234712]
[1764072221607,2.11411639,136.47,136.42,3.01234712]
[1764072221910,2.11411639,136.47,136.42,0.05234712]
[1764072222212,6.5977,136.46,136.42,0.05234712]
[1764072223223,6.5981,136.45,136.42,0.05234712]
[1764072223415,2.11411639,136.45,136.42,0.05234712]
[1764072224912,6.5985,136.44,136.42,0.05234712]
[1764072225115,2.11411639,136.45,136.42,0.05234712]
[1764072226215,6.598,136.46,136.42,0.05234712]
[1764072226418,6.598,136.46,136.42,3.01234712]
[1764072228918,2.11411639,136.48,136.43,2.92]
[1764072229219,2.11411639,136.48,136.45,2.92]
[1764072230116,8.71071639,136.48,136.45,2.92]
[1764072230518,8.71071639,136.48,136.44,2.96878757]
[1764072231420,6.5972,136.47,136.44,2.96878757]
[1764072238023,6.5967,136.48,136.44,2.96878757]
[1764072239518,6.5971,136.47,136.44,2.96878757]
[1764072239723,6.5971,136.47,136.44,2.93878757]
[1764072241326,2.11411639,136.5,136.44,2.93878757]
[1764072242620,25.12,136.51,136.44,2.93878757]
[1764072242826,6.5966,136.48,136.44,2.93878757]
[1764072245825,25.12,136.51,136.44,9.53728757]
[1764072246023,25.12,136.51,136.45,2.89]
[1764072247030,6.5962,136.49,136.45,2.89]
[1764072248130,25.12,136.51,136.44,2.93878757]
[1764072248933,6.5961,136.49,136.45,2.89]
[1764072252234,6.5961,136.49,136.45,9.488]
[1764072252535,115.7607,136.54,136.44,0.04878757]
[1764072252536,6.5955,136.51,136.46,2.89]
[1764072252743,6.5955,136.51,136.47,2.93790077]
[1764072252944,102.573,136.54,136.47,0.04790077]
[1764072253236,102.573,136.54,136.37,22.72481611]
[1764072253237,102.615,136.48,136.39,2.89]
[1764072253845,105.93013565,136.47,136.39,2.89]
[1764072254247,105.93013565,136.47,136.42,0.05626847]
[1764072254248,0.05187315,136.44,136.42,0.05626847]
[1764072255142,6.599,136.43,136.42,0.05626847]
[1764072260435,6.599,136.43,136.42,3.04626847]
[1764072260847,6.599,136.43,136.42,0.05626847]
[1764072266752,6.599,136.43,136.42,3.04626847]
[1764072267539,0.05187315,136.44,136.42,3.04626847]
[1764072268351,6.65037315,136.44,136.42,3.04626847]
[1764072268851,0.05187315,136.44,136.42,0.05626847]
[1764072269051,6.599,136.43,136.42,0.05626847]
[1764072276043,102.6523,136.43,136.37,2.99]
[1764072276449,102.6592,136.42,136.37,2.99]
[1764072276854,6.601,136.39,136.37,2.99]
[1764072277055,6.6487663,136.39,136.37,3.04561536]
[1764072277252,0.0477663,136.39,136.37,3.04561536]
[1764072278751,6.6489663,136.39,136.37,3.04561536]
[1764072281659,6.6014,136.38,136.37,3.04561536]
[1764072282260,0.0477663,136.39,136.37,3.04561536]
[1764072285264,0.0477663,136.39,136.38,64.99]
[1764072286863,102.6322,136.46,136.39,2.99]
[1764072287857,0.05024919,136.44,136.41,0.05178848]
[1764072288067,6.5992,136.43,136.41,0.05178848]
[1764072288362,0.05024919,136.44,136.41,0.05178848]
[1764072289367,0.05024919,136.44,136.41,3.00178848]
[1764072290968,0.05024919,136.44,136.41,0.05178848]
[1764072291667,6.5991,136.43,136.41,3.00178848]
[1764072293155,6.5991,136.43,136.41,0.05178848]
[1764072293357,6.5995,136.42,136.41,0.05178848]
[1764072293565,6.5995,136.42,136.41,3.00178848]
[1764072298866,6.5995,136.42,136.41,0.05178848]
[1764072301474,0.05024919,136.44,136.41,3.03178848]
[1764072301869,102.6036,136.5,136.41,3.03178848]
[1764072302077,6.5971,136.47,136.42,2.98]
[1764072302372,102.5954,136.51,136.43,2.98]
[1764072302565,102.588,136.52,136.43,2.98]
[1764072302870,102.588,136.52,136.46,0.05622683]
[1764072303069,102.588,136.52,136.46,3.03622683]
[1764072303568,6.5965,136.49,136.46,3.03622683]
[1764072304871,6.5966,136.48,136.46,3.03622683]
[1764072305377,6.5958,136.5,136.47,2.98]
[1764072305568,104.68727192,136.54,136.47,3.03022691]
[1764072306871,6.5957,136.5,136.47,3.03022691]
[1764072307076,104.70377192,136.52,136.47,0.05022691]
[1764072308179,104.70377192,136.52,136.47,3.03022691]
[1764072309080,6.5961,136.49,136.47,3.03022691]
[1764072315583,2.11547192,136.52,136.47,3.03022691]
[1764072317188,6.5956,136.5,136.47,3.03022691]
[1764072318086,6.5952,136.51,136.47,3.03022691]
[1764072318380,2.11547192,136.53,136.47,3.03022691]
[1764072318581,2.11547192,136.51,136.47,3.03022691]
[1764072319786,6.5961,136.49,136.47,3.03022691]
[1764072320775,6.5956,136.5,136.47,3.03022691]
[1764072321686,6.5949,136.52,136.47,3.03022691]
[1764072321989,2.11547192,136.57,136.5,2.97]
[1764072322185,2.11547192,136.57,136.53,2.97]
[1764072322386,6.5932,136.55,136.53,2.97]
[1764072322584,2.11547192,136.57,136.53,2.97]
[1764072322989,6.5928,136.56,136.53,2.97]
[1764072323184,2.11547192,136.55,136.52,0.04901502]
[1764072323589,6.5938,136.54,136.52,0.04901502]
[1764072324289,2.11547192,136.53,136.52,0.04901502]
[1764072325685,6.5938,136.54,136.52,0.04901502]
[1764072325878,2.11547192,136.53,136.52,0.04901502]
[1764072331590,6.5938,136.54,136.52,0.04901502]
[1764072333498,6.5942,136.53,136.52,0.04901502]
[1764072334891,8.70967192,136.53,136.52,0.04901502]
[1764072338697,6.5942,136.53,136.52,3.01901502]
[1764072339506,6.5942,136.53,136.52,0.04901502]
[1764072345402,8.70967192,136.53,136.52,0.04901502]
[1764072349411,6.5942,136.53,136.52,0.04901502]
[1764072359215,6.5966,136.48,136.47,65.04]
[1764072359416,6.5966,136.48,136.47,3.04]
[1764072360310,6.5966,136.48,136.47,5.15547192]
[1764072360623,6.64547386,136.49,136.48,3.04]
[1764072360921,0.04937386,136.49,136.48,3.04]
[1764072362424,6.64547386,136.49,136.48,65.04]
[1764072362923,6.5969,136.48,136.46,3.08909792]
[1764072363123,0.04937386,136.49,136.46,3.08909792]
[1764072363824,0.04937386,136.49,136.36,31.81474255]
[1764072363825,102.6444,136.44,136.41,18.0548044]
[1764072364023,102.6444,136.44,136.39,3.04]
[1764072364024,104.77487192,136.42,136.39,4.49353257]
[1764072364227,104.77487192,136.42,136.36,3.04]
[1764072364421,102.6671,136.41,136.36,3.04]
[1764072364822,102.73046823,136.4,136.37,0.04894421]
[1764072365020,6.6015,136.38,136.37,0.04894421]
[1764072365619,102.7069,136.36,136.29,5.15547192]
[1764072365926,104.82237192,136.36,136.3,65.04]
[1764072366125,104.80977192,136.38,136.31,3.04]
[1764072366322,102.684,136.39,136.32,3.04]
[1764072366527,102.7437364,136.37,136.34,0.05232445]
[1764072367227,6.6031,136.35,136.34,0.05232445]
[1764072371138,0.0465364,136.37,136.34,0.05232445]
[1764072372043,6.6025,136.36,136.34,0.05232445]
[1764072372427,9.91501928,136.36,136.34,0.05232445]
[1764072374026,6.604,136.33,136.26,3.04]
[1764072374428,102.7155,136.35,136.26,3.04]
[1764072375031,0.04704761,136.32,136.29,0.04906913]
[1764072375950,6.605,136.31,136.29,0.04906913]
[1764072379742,0.04704761,136.32,136.29,3.21906913]
[1764072382940,102.6954,136.38,136.3,3.17]
[1764072382941,6.6032,136.35,136.3,3.17]
[1764072383636,6.6035,136.34,136.3,3.17]
[1764072383841,102.6954,136.38,136.3,3.17]
[1764072384039,102.6954,136.38,136.32,3.17]
[1764072384337,102.6954,136.38,136.26,186.7662]
[1764072384338,0.04711406,136.36,136.35,3.17]
[1764072384539,102.6631,136.42,136.35,3.17]
[1764072384741,6.6011,136.39,136.36,3.17]
[1764072385337,6.6002,136.41,136.36,3.17]
[1764072385538,0.04889091,136.4,136.37,3.22603613]
[1764072386135,6.64949091,136.4,136.37,3.22603613]
[1764072386335,0.04889091,136.4,136.37,3.22603613]
[1764072387251,0.04889091,136.4,136.39,3.17]
[1764072392451,0.04889091,136.4,136.37,0.05603613]
[1764072392647,3.36141019,136.4,136.37,0.05603613]
[1764072393242,6.6012,136.39,136.37,0.05603613]
[1764072396655,6.603,136.35,136.32,3.17]
[1764072396843,102.6856,136.39,136.32,3.17]
[1764072397742,0.05465068,136.37,136.34,3.21925601]
[1764072397943,6.6024,136.36,136.34,3.21925601]
[1764072398251,6.6024,136.36,136.34,0.04925601]
[1764072399440,6.6024,136.36,136.34,3.21925601]
[1764072399943,0.05465068,136.37,136.34,3.21925601]
[1764072400361,102.6478,136.44,136.36,3.17]
[1764072401442,0.05025552,136.41,136.39,3.2252953]
[1764072402056,6.65055552,136.41,136.39,3.2252953]
[1764072406456,0.05025552,136.41,136.39,3.2252953]
[1764072407652,102.6232,136.47,136.39,3.2252953]
[1764072407855,102.6152,136.48,136.39,3.2252953]
[1764072408054,3.31251928,136.49,136.4,2.96]
[1764072408562,0.05227892,136.46,136.43,3.01276482]
[1764072409860,6.64997892,136.46,136.43,3.01276482]
[1764072410052,0.05227892,136.46,136.43,3.01276482]
[1764072410654,0.05227892,136.46,136.44,64.96]
[1764072410856,0.05227892,136.46,136.44,2.96]
[1764072411058,6.5981,136.45,136.44,2.96]
[1764072412766,0.05227892,136.46,136.44,2.96]
[1764072413468,6.64987892,136.46,136.44,2.96]
[1764072415068,6.5983,136.45,136.43,0.05276482]
[1764072415269,6.5983,136.45,136.43,3.01276482]
[1764072418164,6.5983,136.45,136.43,0.05276482]
[1764072422269,6.5985,136.44,136.43,0.05276482]
[1764072423368,6.5985,136.44,136.38,25.16594367]
[1764072423369,102.6603,136.42,136.34,3.03]
[1764072423566,105.97981928,136.41,136.34,3.03]
[1764072423963,6.6009,136.4,136.34,3.03]
[1764072424267,102.6603,136.42,136.34,3.03]
[1764072424574,0.0481064,136.38,136.36,3.08463698]
[1764072429182,0.0481064,136.38,136.37,62.0]
[1764072429370,0.0481064,136.38,136.37,65.03]
[1764072433377,2.11813401,136.42,136.38,3.03]
[1764072434088,2.11813401,136.44,136.38,3.03]
[1764072434379,0.05466706,136.42,136.41,3.03]
[1764072434583,0.05507988,136.43,136.41,3.03]
[1764072434780,0.05551643,136.43,136.41,3.07711628]
[1764072436580,0.05551643,136.43,136.41,65.07711628]
[1764072436780,0.05551643,136.43,136.42,3.03]
[1764072438584,0.05551643,136.43,136.41,62.04711628]
[1764072438774,0.05551643,136.43,136.41,0.04711628]
[1764072439171,0.05551643,136.43,136.41,3.20711628]
[1764072441284,2.17365044,136.43,136.41,0.04711628]
[1764072444291,6.5995,136.42,136.36,3.16]
[1764072444494,2.11813401,136.4,136.36,3.16]
[1764072445292,0.05299196,136.39,136.38,3.16]
[1764072448595,0.05299196,136.39,136.37,65.20771836]
[1764072448797,0.05299196,136.39,136.37,3.20771836]
[1764072451283,6.65399196,136.39,136.37,3.20771836]
[1764072451489,0.05299196,136.39,136.37,0.04771836]
[1764072451889,6.65389196,136.39,136.37,0.04771836]
[1764072454301,6.6014,136.38,136.37,0.04771836]
[1764072456003,6.6014,136.38,136.37,3.20771836]
[1764072457588,0.05299196,136.39,136.37,3.20771836]
[1764072458606,0.05299196,136.39,136.37,5.32585237]
[1764072458794,0.05299196,136.39,136.38,3.16]
[1764072460410,27.19813401,136.47,136.38,3.16]
[1764072460609,2.11813401,136.47,136.4,3.16]
[1764072461207,0.05069775,136.45,136.42,3.2085713]
[1764072461912,2.16883176,136.45,136.42,0.0485713]
[1764072462214,2.11813401,136.43,136.37,3.16]
[1764072463116,6.65560845,136.41,136.39,0.04871774]
[1764072463911,6.6004,136.4,136.39,0.04871774]
[1764072471628,6.6027,136.36,136.34,3.09]
[1764072472725,6.6524201,136.36,136.34,3.13751409]
[1764072474230,6.6524201,136.36,136.34,25.62981275]
[1764072474420,0.0497201,136.36,136.35,3.09]
[1764072480632,6.6014,136.38,136.35,3.09]
[1764072480824,2.11813401,136.41,136.35,3.09]